bitfinex-derivatives/quotes_SOLF0:USTF0_20260208
["timestamp","ask_amount","ask_price","bid_price","bid_amount"]
[1770543456911,39.55727172,87.825,87.731,35.79882901]
[1770543457418,39.55727172,87.825,87.741,36.06458828]
[1770543457604,43.20814119,87.819,87.741,36.06458828]
[1770543458102,43.20814119,87.819,87.742,11.39]
[1770543458308,43.20814119,87.815,87.742,36.2041557]
[1770543458820,10.2602,87.803,87.725,36.20885678]
[1770543459017,43.20814119,87.799,87.725,36.20885678]
[1770543460719,53.46884119,87.799,87.727,36.40319295]
[1770543461812,10.2618,87.789,87.717,10.2701]
[1770543462018,43.20814119,87.788,87.711,36.64150235]
[1770543462421,43.20814119,87.788,87.69,11.57560416]
[1770543462422,43.20814119,87.788,87.713,36.77400601]
[1770543462723,43.20814119,87.786,87.714,10.2704]
[1770543463020,43.20814119,87.786,87.715,36.77848572]
[1770543463215,43.20814119,87.784,87.715,36.77848572]
[1770543463920,43.20814119,87.784,87.676,1.98331847]
[1770543463921,43.20814119,87.784,87.723,36.83953743]
[1770543464318,43.20814119,87.784,87.725,36.97010012]
[1770543464514,43.20814119,87.816,87.731,36.97440386]
[1770543464712,43.20814119,87.816,87.736,11.39]
[1770543465012,43.20814119,87.816,87.749,36.97440386]
[1770543465515,43.20814119,87.816,87.756,48.52847324]
[1770543466224,43.20814119,87.816,87.761,37.13847324]
[1770543466423,43.20814119,87.816,87.762,11.39]
[1770543466619,43.20814119,87.816,87.763,37.27032679]
[1770543467515,43.20814119,87.816,87.764,11.39]
[1770543467717,43.20814119,87.816,87.763,37.27032679]
[1770543468616,43.20814119,87.816,87.764,11.39]
[1770543468821,43.20814119,87.816,87.763,37.27032679]
[1770543469224,43.20814119,87.814,87.746,37.44222116]
[1770543469610,43.20814119,87.814,87.751,37.90380471]
[1770543470011,43.20814119,87.814,87.758,10.2654]
[1770543470216,43.20814119,87.814,87.759,38.02561473]
[1770543470726,43.20814119,87.814,87.762,38.03000337]
[1770543471231,43.20814119,87.814,87.763,48.4150565]
[1770543471917,43.20814119,87.814,87.763,38.1503565]
[1770543472523,43.20814119,87.811,87.743,38.26119689]
[1770543473622,43.20814119,87.811,87.73,11.57560416]
[1770543473815,43.20814119,87.811,87.731,38.52599021]
[1770543474213,43.20814119,87.8,87.734,10.2681]
[1770543475116,43.20814119,87.8,87.737,38.7604277]
[1770543476324,43.20814119,87.8,87.745,10.2668]
[1770543476627,43.20814119,87.8,87.746,38.87891341]
[1770543476927,43.20814119,87.8,87.75,38.88321819]
[1770543480026,43.20814119,87.8,87.751,11.39]
[1770543480415,43.20814119,87.824,87.751,39.56991467]
[1770543480619,43.20814119,87.839,87.761,39.57424802]
[1770543481019,10.2562,87.837,87.772,10.2637]
[1770543481315,43.20814119,87.839,87.773,39.57424802]
[1770543481523,10.2571,87.829,87.773,39.57424802]
[1770543481730,43.20814119,87.828,87.773,39.57424802]
[1770543482119,43.20814119,87.819,87.756,49.9882267]
[1770543483220,43.20814119,87.819,87.757,11.39]
[1770543483422,43.20814119,87.819,87.756,49.9882267]
[1770543483830,9.31025687,87.876,87.737,40.04932861]
[1770543483831,43.20814119,87.817,87.737,40.04932861]
[1770543484326,43.20814119,87.801,87.738,10.2676]
[1770543484525,43.20814119,87.801,87.739,40.15714109]
[1770543485023,43.20814119,87.801,87.741,40.15714109]
[1770543485222,43.20814119,87.801,87.73,11.57560416]
[1770543485223,43.20814119,87.801,87.745,40.25942343]
[1770543485528,43.20814119,87.801,87.748,11.39]
[1770543487031,43.20814119,87.801,87.747,40.25942343]
[1770543487538,43.20814119,87.801,87.751,40.85335257]
[1770543487827,43.20814119,87.801,87.751,52.24335257]
[1770543488025,43.20814119,87.801,87.753,51.78009374]
[1770543488624,43.20814119,87.801,87.755,51.88163738]
[1770543489527,43.20814119,87.801,87.757,51.97804532]
[1770543490024,44.10392356,87.824,87.759,40.94714854]
[1770543490435,44.10392356,87.824,87.76,11.39]
[1770543490725,44.10392356,87.824,87.768,41.04574161]
[1770543491128,44.10392356,87.824,87.751,41.04574161]
[1770543491633,44.10392356,87.824,87.756,11.39]
[1770543491826,44.10392356,87.824,87.755,41.15125744]
[1770543492024,44.10392356,87.824,87.731,41.15125744]
[1770543492421,44.10392356,87.819,87.746,41.24474765]
[1770543492628,44.10392356,87.819,87.749,52.63879696]
[1770543492829,44.10392356,87.819,87.749,41.24879696]
[1770543493524,44.10392356,87.819,87.761,11.39]
[1770543493728,44.10392356,87.819,87.762,40.21848689]
[1770543494631,44.10392356,87.819,87.766,40.31111589]
[1770543495228,11.57560416,87.86,87.766,40.31111589]
[1770543495229,43.29703826,87.859,87.766,40.31111589]
[1770543496634,43.29703826,87.836,87.768,40.88823029]
[1770543497140,43.29703826,87.836,87.774,40.88823029]
[1770543498030,43.29703826,87.851,87.778,40.83457121]
[1770543498737,43.29703826,87.851,87.786,40.92342669]
[1770543499441,43.29703826,87.851,87.789,41.00976525]
[1770543499733,43.29703826,87.866,87.791,40.92889458]
[1770543500836,43.29703826,87.866,87.79,11.57560416]
[1770543500837,43.29703826,87.866,87.794,41.01592413]
[1770543501139,43.29703826,87.849,87.751,41.09903534]
[1770543501341,43.29703826,87.843,87.771,41.09903534]
[1770543501936,43.29703826,87.843,87.786,42.14692684]
[1770543502738,43.29703826,87.843,87.789,42.23248711]
[1770543505443,43.29703826,87.839,87.789,42.23248711]
[1770543506137,43.29703826,87.839,87.78,4.31602043]
[1770543506643,43.29703826,87.829,87.773,42.23248711]
[1770543507046,43.29703826,87.829,87.78,4.31602043]
[1770543508232,43.29703826,87.829,87.79,4.31602043]
[1770543510139,43.29703826,87.829,87.782,10.2625]
[1770543510847,43.29703826,87.864,87.81,4.31602043]
[1770543512047,43.29703826,87.864,87.803,10.26]
[1770543512837,43.29703826,87.864,87.803,52.49248711]
[1770543514345,43.29703826,87.864,87.82,4.31602043]
[1770543514542,4.31602043,87.88,87.82,46.54850754]
[1770543514938,43.29703826,87.879,87.82,46.54850754]
[1770543515338,43.29703826,87.869,87.81,4.31602043]
[1770543516046,43.29703826,87.869,87.813,10.2589]
[1770543516344,43.29703826,87.869,87.81,4.31602043]
[1770543516646,43.29703826,87.869,87.82,4.31602043]
[1770543517149,43.29703826,87.869,87.821,10.258]
[1770543519042,43.29703826,87.869,87.821,55.18778473]
[1770543525049,43.29703826,87.869,87.821,10.258]
[1770543527749,42.94669136,87.893,87.83,4.31239066]
[1770543527951,42.94669136,87.869,87.81,4.31239066]
[1770543528146,42.94669136,87.869,87.81,48.42468852]
[1770543528550,42.94669136,87.869,87.82,4.31239066]
[1770543529453,42.94669136,87.869,87.757,159.6853]
[1770543529454,42.94669136,87.869,87.83,48.40623832]
[1770543529649,42.94669136,87.869,87.83,44.09384766]
[1770543533150,42.94669136,87.869,87.82,4.31239066]
[1770543534054,42.94669136,87.869,87.82,15.70239066]
[1770543534256,42.94669136,87.869,87.82,4.31239066]
[1770543534451,42.94669136,87.869,87.821,10.2579]
[1770543538557,42.94669136,87.859,87.811,10.2591]
[1770543538754,42.94669136,87.859,87.812,44.17743696]
[1770543538955,42.94669136,87.859,87.82,4.31239066]
[1770543539261,42.94669136,87.859,87.823,10.2577]
[1770543540151,4.31239066,87.88,87.823,10.2577]
[1770543540152,4.31239066,87.88,87.823,45.03595345]
[1770543540351,42.94669136,87.888,87.86,4.31239066]
[1770543541164,4.31239066,87.93,87.87,4.31239066]
[1770543541558,4.31239066,87.91,87.853,57.55055846]
[1770543541757,4.31239066,87.9,87.853,10.2542]
[1770543541956,4.31239066,87.91,87.853,10.2542]
[1770543542558,4.31239066,87.92,87.862,10.2531]
[1770543542957,4.31239066,87.91,87.85,4.31239066]
[1770543543159,42.94669136,87.899,87.851,10.2545]
[1770543543559,42.94669136,87.899,87.841,10.2556]
[1770543543760,159.3123,87.963,87.784,20.5246]
[1770543543761,42.94669136,87.879,87.811,47.29635846]
[1770543544760,42.94669136,87.879,87.824,10.2576]
[1770543544966,42.94669136,87.869,87.813,47.29635846]
[1770543545163,42.94669136,87.869,87.82,4.31239066]
[1770543545359,42.94669136,87.869,87.821,10.258]
[1770543546163,42.94669136,87.869,87.831,10.2568]
[1770543547260,42.94669136,87.869,87.826,10.2574]
[1770543549565,42.94669136,87.869,87.82,48.76543538]
[1770543550081,42.94669136,87.869,87.821,11.39]
[1770543550372,45.06051349,87.859,87.807,44.45304472]
[1770543550562,45.06051349,87.849,87.791,44.45304472]
[1770543553163,45.06051349,87.849,87.792,44.45304472]
[1770543555172,45.06051349,87.849,87.794,44.62925011]
[1770543561369,45.06051349,87.849,87.801,44.62925011]
[1770543561570,43.37170759,87.862,87.81,48.94164077]
[1770543562480,43.37170759,87.862,87.766,34.71339609]
[1770543562481,43.37170759,87.862,87.82,4.31239066]
[1770543562976,43.37170759,87.862,87.812,44.62925011]
[1770543564267,43.37170759,87.878,87.812,44.62925011]
[1770543564471,43.37170759,87.878,87.82,48.94164077]
[1770543564668,43.37170759,87.878,87.82,44.62925011]
[1770543565180,43.37170759,87.899,87.84,48.94164077]
[1770543570279,43.37170759,87.879,87.824,44.62925011]
[1770543570783,43.37170759,87.869,87.824,44.62925011]
[1770543571478,43.37170759,87.869,87.81,48.94164077]
[1770543572586,43.37170759,87.869,87.809,10.2594]
[1770543572587,43.37170759,87.849,87.797,44.62925011]
[1770543572977,43.37170759,87.849,87.79,4.31239066]
[1770543572978,43.37170759,87.849,87.8,48.94164077]
[1770543573181,43.37170759,87.893,87.83,4.31239066]
[1770543573391,43.37170759,87.889,87.831,44.62925011]
[1770543575084,43.37170759,87.889,87.777,34.23]
[1770543575085,43.37170759,87.889,87.841,44.62925011]
[1770543576686,46.10857199,87.903,87.841,44.62925011]
[1770543576882,46.10857199,87.899,87.841,44.62925011]
[1770543578390,46.10857199,87.889,87.841,44.62925011]
[1770543580088,46.10857199,87.909,87.85,50.95088948]
[1770543581188,4.31239066,87.91,87.855,46.63849882]
[1770543581381,10.48689001,87.959,87.801,159.6054]
[1770543581382,46.10857199,87.919,87.87,4.3079349]
[1770543581781,46.10857199,87.919,87.861,46.63849882]
[1770543582493,46.10857199,87.933,87.881,46.63849882]
[1770543583287,46.10857199,87.947,87.881,46.63849882]
[1770543583485,46.10857199,87.966,87.91,4.3079349]
[1770543583692,46.10857199,87.966,87.92,4.3079349]
[1770543583994,46.10857199,87.966,87.911,46.63849882]
[1770543584187,46.10857199,87.966,87.92,4.3079349]
[1770543584388,46.10857199,87.966,87.92,50.94643372]
[1770543585792,46.10857199,87.966,87.92,46.63849882]
[1770543586696,46.10857199,87.959,87.906,46.63849882]
[1770543586886,46.10857199,87.959,87.91,4.3079349]
[1770543587892,46.10857199,87.959,87.906,46.63849882]
[1770543589193,46.10857199,87.959,87.91,4.3079349]
[1770543590092,46.10857199,87.959,87.9,50.94643372]
[1770543591194,46.10857199,87.949,87.9,46.63849882]
[1770543591393,1.97896497,88.016,87.88,10.2511]
[1770543591394,46.10857199,87.939,87.885,46.63849882]
[1770543591790,46.10857199,87.939,87.89,4.3079349]
[1770543591998,12.46585498,88.016,87.901,46.63849882]
[1770543591999,46.10857199,87.953,87.901,46.63849882]
[1770543592592,46.10857199,87.953,87.911,46.63849882]
[1770543592793,46.10857199,87.969,87.911,46.63849882]
[1770543594689,4.3079349,87.96,87.911,46.63849882]
[1770543595088,46.10857199,87.969,87.911,46.63849882]
[1770543597492,46.10857199,87.959,87.9,4.3079349]
[1770543597800,46.10857199,87.949,87.897,46.63849882]
[1770543598500,46.10857199,87.949,87.89,4.3079349]
[1770543598501,46.10857199,87.949,87.899,46.63849882]
[1770543598701,46.10857199,87.949,87.901,46.63849882]
[1770543599296,46.10857199,87.949,87.902,56.88699882]
[1770543601201,46.10857199,87.949,87.902,46.63849882]
[1770543601598,46.10857199,87.963,87.911,46.63849882]
[1770543601796,46.10857199,87.959,87.9,4.3079349]
[1770543601997,46.10857199,87.959,87.901,46.63849882]
[1770543602691,46.10857199,87.959,87.903,56.88679882]
[1770543609902,46.10857199,87.959,87.903,46.63849882]
[1770543610209,47.14244267,87.949,87.903,46.63849882]
[1770543611910,47.14244267,87.949,87.883,43.58527457]
[1770543613200,47.14244267,87.949,87.891,43.58527457]
[1770543616006,46.80692873,87.966,87.911,45.87135559]
[1770543616708,46.80692873,87.959,87.911,45.87135559]
[1770543617101,46.80692873,87.959,87.921,45.87135559]
[1770543618810,46.80692873,87.959,87.91,50.17929049]
[1770543619010,46.80692873,87.959,87.92,50.17929049]
[1770543619413,46.80692873,87.973,87.93,4.3079349]
[1770543619614,46.80692873,87.969,87.92,45.87135559]
[1770543619813,46.80692873,87.969,87.92,50.17929049]
[1770543620113,46.80692873,87.969,87.93,50.17929049]
[1770543620316,46.80692873,87.989,87.941,45.87135559]
[1770543621420,46.80692873,87.995,87.96,4.3079349]
[1770543621715,46.80692873,87.995,87.95,50.17929049]
[1770543622112,46.80692873,88.025,87.98,4.3079349]
[1770543622317,46.80692873,88.025,87.912,34.23]
[1770543622318,46.80692873,88.025,87.971,45.87135559]
[1770543622721,46.80692873,88.019,87.971,45.87135559]
[1770543623420,46.80692873,88.019,87.96,4.3079349]
[1770543623618,46.80692873,88.019,87.957,45.87135559]
[1770543624218,46.80692873,88.019,87.962,45.87135559]
[1770543624418,46.80692873,88.019,87.97,4.3079349]
[1770543624819,46.80692873,88.019,87.962,45.87135559]
[1770543626519,46.80692873,88.019,87.964,45.87135559]
[1770543626721,46.80692873,88.019,87.97,50.17929049]
[1770543628425,46.80692873,88.019,87.97,45.87135559]
[1770543629028,46.80692873,88.019,87.97,50.17929049]
[1770543629526,46.80692873,88.019,87.97,45.87135559]
[1770543629829,46.80692873,87.999,87.941,45.87135559]
[1770543630026,4.3079349,87.99,87.941,45.87135559]
[1770543630228,4.3079349,87.99,87.896,308.55048656]
[1770543630229,46.80692873,87.979,87.927,10.2456]
[1770543630424,46.80692873,87.979,87.927,56.11695559]
[1770543630633,46.80692873,87.979,87.93,50.17929049]
[1770543630825,46.80692873,87.979,87.93,45.87135559]
[1770543633037,46.80692873,87.969,87.916,45.87135559]
[1770543634137,4.3079349,87.97,87.9,4.3079349]
[1770543634138,46.80692873,87.959,87.901,45.87135559]
[1770543634622,46.80692873,87.969,87.911,45.87135559]
[1770543635928,46.80692873,87.969,87.914,10.2471]
[1770543636823,46.04430772,87.959,87.911,45.87135559]
[1770543640238,46.04430772,87.979,87.92,47.98606376]
[1770543641035,46.04430772,87.969,87.92,43.67812886]
[1770543641537,4.30367152,87.96,87.92,43.67812886]
[1770543641934,50.34797924,87.96,87.904,43.67812886]
[1770543642140,46.04430772,87.949,87.904,43.67812886]
[1770543642837,46.04430772,87.949,87.891,43.67812886]
[1770543643035,46.04430772,87.939,87.88,4.30367152]
[1770543643937,46.04430772,87.939,87.881,43.67812886]
[1770543644641,46.04430772,87.929,87.881,43.67812886]
[1770543644940,4.30367152,87.89,87.837,43.67812886]
[1770543645140,46.04430772,87.899,87.844,10.2553]
[1770543646029,46.04430772,87.889,87.844,43.67812886]
[1770543646233,46.04430772,87.889,87.831,10.2567]
[1770543646834,46.04430772,87.889,87.831,53.93482886]
[1770543648630,46.04430772,87.889,87.846,43.67812886]
[1770543649942,46.04430772,87.889,87.835,10.2564]
[1770543650137,46.04430772,87.889,87.832,43.67812886]
[1770543650342,50.34797924,87.88,87.818,43.67812886]
[1770543650540,4.30367152,87.86,87.802,43.67812886]
[1770543650842,46.04430772,87.859,87.802,43.67812886]
[1770543651038,46.04430772,87.839,87.787,43.67812886]
[1770543651438,46.04430772,87.839,87.729,34.14]
[1770543651439,46.04430772,87.839,87.791,43.67812886]
[1770543651639,46.04430772,87.839,87.775,43.67812886]
[1770543652938,46.04430772,87.839,87.764,43.67812886]
[1770543654247,46.04430772,87.829,87.751,10.2662]
[1770543655544,46.04430772,87.829,87.749,43.67812886]
[1770543655545,46.04430772,87.827,87.738,10.2676]
[1770543655741,46.04430772,87.827,87.739,43.67812886]
[1770543655942,46.04430772,87.809,87.721,43.67812886]
[1770543656750,46.04430772,87.809,87.726,43.67812886]
[1770543657546,46.04430772,87.809,87.707,43.67812886]
[1770543657742,46.04430772,87.799,87.707,43.67812886]
[1770543658648,46.04430772,87.796,87.71,43.67812886]
[1770543659044,46.04430772,87.796,87.722,10.2695]
[1770543659347,46.04430772,87.796,87.723,43.67812886]
[1770543659648,46.04430772,87.796,87.726,43.67812886]
[1770543660244,46.04430772,87.796,87.711,43.67812886]
[1770543660451,46.04430772,87.796,87.714,43.67812886]
[1770543661246,46.04430772,87.796,87.723,43.67812886]
[1770543661643,46.04430772,87.796,87.706,43.67812886]
[1770543661848,46.04430772,87.791,87.706,43.67812886]
[1770543662044,46.04430772,87.779,87.693,1.98296813]
[1770543662246,46.04430772,87.779,87.693,43.67812886]
[1770543662448,46.04430772,87.769,87.693,43.67812886]
[1770543662847,46.04430772,87.759,87.693,43.67812886]
[1770543665144,46.04430772,87.759,87.675,43.67812886]
[1770543666252,11.55977302,87.76,87.675,43.67812886]
[1770543666253,46.04972349,87.746,87.675,43.67812886]
[1770543666458,46.04972349,87.746,87.688,48.91084278]
[1770543667358,46.04972349,87.746,87.688,0.48336859]
[1770543667555,46.04972349,87.739,87.688,0.48336859]
[1770543667756,46.04972349,87.739,87.653,48.42747419]
[1770543667957,46.04972349,87.732,87.655,48.42747419]
[1770543669061,46.04972349,87.728,87.655,48.42747419]
[1770543669264,46.04972349,87.728,87.654,10.2776]
[1770543669265,46.04972349,87.699,87.618,48.42747419]
[1770543669663,46.04972349,87.696,87.618,48.42747419]
[1770543670260,46.04972349,87.712,87.621,48.42747419]
[1770543671262,46.04972349,87.71,87.631,48.42747419]
[1770543672256,46.04972349,87.705,87.631,48.42747419]
[1770543673863,46.93945243,87.702,87.631,48.42747419]
[1770543674855,46.93945243,87.702,87.633,55.99556589]
[1770543675060,46.93945243,87.739,87.641,44.63556589]
[1770543675258,46.93945243,87.736,87.641,44.63556589]
[1770543675458,46.93945243,87.736,87.644,44.63556589]
[1770543675655,46.93945243,87.719,87.644,44.63556589]
[1770543677259,46.93945243,87.716,87.644,44.63556589]
[1770543678372,46.93945243,87.716,87.649,44.63556589]
[1770543679865,46.93945243,87.716,87.601,34.14]
[1770543679866,46.93945243,87.716,87.651,44.63556589]
[1770543680363,46.93945243,87.716,87.662,10.2766]
[1770543680560,46.93945243,87.716,87.663,44.63556589]
[1770543680764,46.93945243,87.739,87.663,44.63556589]
[1770543684171,46.93945243,87.739,87.665,44.63556589]
[1770543684966,46.93945243,87.739,87.673,44.63556589]
[1770543690173,46.93945243,87.753,87.675,44.63556589]
[1770543691370,10.2636,87.774,87.691,44.63556589]
[1770543691371,46.93945243,87.749,87.691,44.63556589]
[1770543691571,46.93945243,87.761,87.701,44.63556589]
[1770543691876,46.93945243,87.761,87.711,44.63556589]
[1770543692372,46.93945243,87.749,87.693,44.63556589]
[1770543692966,46.93945243,87.763,87.711,44.63556589]
[1770543695970,46.93945243,87.763,87.697,46.56223665]
[1770543698178,10.2662,87.751,87.679,46.56223665]
[1770543698480,45.44028991,87.75,87.679,46.56223665]
[1770543699581,45.44028991,87.748,87.679,46.56223665]
[1770543700672,45.44028991,87.746,87.665,46.56223665]
[1770543701276,45.44028991,87.755,87.679,46.56223665]
[1770543701883,45.44028991,87.753,87.682,46.56223665]
[1770543702185,45.44028991,87.753,87.684,57.92223665]
[1770543702479,45.44028991,87.753,87.687,46.56223665]
[1770543703685,45.44028991,87.753,87.691,46.56223665]
[1770543704983,45.44028991,87.753,87.67,11.58452801]
[1770543704984,45.44028991,87.753,87.696,46.56223665]
[1770543705280,45.44028991,87.779,87.696,46.56223665]
[1770543705490,45.44028991,87.779,87.712,46.56223665]
[1770543706000,45.44028991,87.819,87.712,46.56223665]
[1770543706488,45.44028991,87.817,87.731,46.56223665]
[1770543707384,45.44028991,87.817,87.745,46.56223665]
[1770543708780,45.44028991,87.817,87.745,56.82903665]
[1770543708975,45.44028991,87.817,87.751,46.56223665]
[1770543709384,45.44028991,87.817,87.754,46.56223665]
[1770543710683,45.44028991,87.817,87.756,46.56223665]
[1770543712394,45.44028991,87.817,87.721,46.56223665]
[1770543712691,45.44028991,87.799,87.721,46.56223665]
[1770543717284,45.44028991,87.799,87.724,46.56223665]
[1770543717990,45.44028991,87.799,87.728,46.56223665]
[1770543719382,45.44028991,87.799,87.735,46.56223665]
[1770543721586,45.44028991,87.799,87.715,46.56223665]
[1770543725491,45.44028991,87.799,87.72,46.56223665]
[1770543735100,47.38221836,87.797,87.72,46.56223665]
[1770543735807,47.38221836,87.779,87.72,46.56223665]
[1770543736100,47.38221836,87.779,87.695,11.36]
[1770543736306,47.38221836,87.779,87.702,46.3764597]
[1770543736705,47.38221836,87.777,87.702,46.3764597]
[1770543737902,47.38221836,87.759,87.685,46.3764597]
[1770543738302,47.38221836,87.759,87.688,46.3764597]
[1770543738908,47.38221836,87.759,87.691,11.36]
[1770543739113,47.38221836,87.759,87.707,11.36]
[1770543739299,47.38221836,87.759,87.69,11.58452801]
[1770543739300,47.38221836,87.759,87.712,57.7364597]
[1770543740198,47.38221836,87.759,87.717,11.36]
[1770543740411,47.38221836,87.759,87.716,46.3764597]
[1770543746216,47.38221836,87.772,87.724,46.3764597]
[1770543746421,47.38221836,87.772,87.728,57.7364597]
[1770543746715,47.38221836,87.772,87.728,46.3764597]
[1770543747724,47.38221836,87.772,87.701,11.36]
[1770543747725,47.38221836,87.77,87.701,46.3764597]
[1770543748217,11.58452801,87.78,87.701,46.3764597]
[1770543748218,47.38221836,87.749,87.701,46.3764597]
[1770543750114,10.2669,87.745,87.701,46.3764597]
[1770543750521,10.2669,87.745,87.701,57.7364597]
[1770543751417,10.2669,87.745,87.701,46.3764597]
[1770543751617,10.2674,87.741,87.701,46.3764597]
[1770543752418,10.2674,87.741,87.626,34.71339609]
[1770543752419,10.2686,87.731,87.689,46.3764597]
[1770543752618,10.2686,87.731,87.625,34.71339609]
[1770543752619,51.70731174,87.73,87.676,46.3764597]
[1770543752817,4.32509338,87.72,87.676,46.3764597]
[1770543753425,47.38221836,87.73,87.676,46.3764597]
[1770543753822,47.38221836,87.718,87.64,11.5924394]
[1770543754333,10.2718,87.703,87.643,10.2788]
[1770543754523,10.2718,87.703,87.644,11.36]
[1770543754719,47.38221836,87.718,87.644,11.36]
[1770543755031,47.38221836,87.718,87.649,10.2781]
[1770543755534,47.38221836,87.749,87.66,11.5924394]
[1770543755925,45.86468968,87.744,87.668,47.04438702]
[1770543756833,45.86468968,87.744,87.67,47.04438702]
[1770543757440,45.86468968,87.744,87.672,47.04438702]
[1770543758730,45.86468968,87.744,87.66,11.5924394]
[1770543758731,45.86468968,87.744,87.675,47.04438702]
[1770543759329,45.86468968,87.744,87.678,10.2747]
[1770543759534,45.86468968,87.744,87.66,11.5924394]
[1770543759535,45.86468968,87.744,87.679,47.04438702]
[1770543760131,45.86468968,87.744,87.683,47.04438702]
[1770543767236,45.86468968,87.738,87.683,47.04438702]
[1770543767432,45.86468968,87.738,87.669,47.04438702]
[1770543768544,45.86468968,87.738,87.656,47.04438702]
[1770543768742,45.86468968,87.718,87.656,47.04438702]
[1770543771540,56.13478968,87.718,87.656,47.04438702]
[1770543773645,45.86468968,87.709,87.656,47.04438702]
[1770543775946,45.86468968,87.699,87.656,47.04438702]
[1770543776744,56.13698968,87.699,87.656,47.04438702]
[1770543778346,45.86468968,87.699,87.656,47.04438702]
[1770543780242,56.13738968,87.696,87.656,47.04438702]
[1770543781645,45.86468968,87.679,87.62,4.32924736]
[1770543781845,45.86468968,87.679,87.621,11.36]
[1770543782046,45.86468968,87.669,87.593,306.45727326]
[1770543782251,45.86468968,87.656,87.6,4.32924736]
[1770543782542,45.86468968,87.656,87.593,314.75673137]
[1770543782543,4.32924736,87.65,87.593,304.47203137]
[1770543782744,20.5443,87.701,87.524,20.5857]
[1770543782745,56.14438968,87.636,87.58,4.32924736]
[1770543782941,56.14438968,87.636,87.591,11.36]
[1770543783138,4.32924736,87.63,87.591,11.36]
[1770543783543,10.2811,87.624,87.57,4.32924736]
[1770543783848,10.2811,87.624,87.58,29.62846585]
[1770543784243,10.2825,87.612,87.58,29.62846585]
[1770543784547,10.2825,87.612,87.58,6.585e-05]
[1770543784746,10.2787,87.645,87.59,4.32924736]
[1770543784945,48.01995335,87.664,87.61,4.32924736]
[1770543785343,10.2786,87.646,87.61,4.32924736]
[1770543785642,48.01995335,87.664,87.61,4.32924736]
[1770543785949,48.37855391,87.659,87.6,4.32924736]
[1770543786943,48.37855391,87.659,87.61,4.32924736]
[1770543787646,48.37855391,87.659,87.62,4.32924736]
[1770543788149,48.37855391,87.659,87.62,4.60503313]
[1770543790551,47.96209247,87.674,87.62,0.27578577]
[1770543790849,4.32924736,87.67,87.62,0.27578577]
[1770543791056,52.29133983,87.67,87.62,0.27578577]
[1770543792136,47.96209247,87.67,87.62,0.27578577]
[1770543792950,48.22660434,87.659,87.606,0.07888791]
[1770543794553,48.23854578,87.649,87.59,4.43957025]
[1770543794743,48.23854578,87.649,87.591,0.11032289]
[1770543796454,47.95463962,87.639,87.591,0.11032289]
[1770543800154,48.15475322,87.652,87.611,0.50279591]
[1770543802551,48.15475322,87.652,87.617,10.2818]
[1770543803958,48.10255862,87.667,87.62,15.39290249]
[1770543804455,48.10255862,87.667,87.62,11.06365513]
[1770543805057,48.10255862,87.667,87.629,10.2804]
[1770543805544,48.10255862,87.667,87.607,0.86777922]
[1770543805743,4.32924736,87.66,87.607,0.86777922]
[1770543805947,48.21708889,87.659,87.607,0.86777922]
[1770543807146,48.21708889,87.659,87.61,4.32924736]
[1770543807958,48.21708889,87.659,87.629,10.2805]
[1770543808555,48.21708889,87.659,87.619,10.2817]
[1770543808956,47.94758729,87.649,87.597,11.36]
[1770543809256,47.94758729,87.649,87.594,1.29853099]
[1770543809953,4.32924736,87.64,87.594,1.29853099]
[1770543810161,44.81336655,87.629,87.574,11.53730604]
[1770543810354,44.81336655,87.629,87.585,10.2856]
[1770543811649,44.81336655,87.629,87.58,4.32924736]
[1770543811859,44.81336655,87.629,87.581,11.8973295]
[1770543815456,44.81336655,87.629,87.582,10.2859]
[1770543815846,44.81336655,87.629,87.583,10.20632616]
[1770543816054,44.81336655,87.629,87.592,10.2848]
[1770543816660,44.81336655,87.629,87.588,10.2853]
[1770543817262,44.81336655,87.629,87.583,10.20632616]
[1770543818162,44.81336655,87.629,87.585,10.2856]
[1770543818657,46.3943156,87.641,87.59,4.32924736]
[1770543818962,46.3943156,87.641,87.591,9.46496059]
[1770543819762,46.3943156,87.641,87.597,10.2842]
[1770543820349,46.3943156,87.639,87.587,10.2854]
[1770543820754,46.3943156,87.639,87.591,9.58625379]
[1770543821865,46.3943156,87.639,87.597,10.2842]
[1770543823754,46.3943156,87.639,87.606,10.2831]
[1770543823953,46.3943156,87.639,87.581,11.36]
[1770543824166,46.3943156,87.639,87.58,24.98558397]
[1770543825362,46.3943156,87.639,87.58,24.99262018]
[1770543825867,46.3943156,87.639,87.595,10.2845]
[1770543827161,46.3943156,87.639,87.603,10.2834]
[1770543827759,46.3943156,87.639,87.583,20.75427222]
[1770543830771,46.3943156,87.639,87.584,10.2857]
[1770543831571,46.3943156,87.639,87.583,20.75427222]
[1770543831869,46.3943156,87.629,87.583,20.75427222]
[1770543833173,46.3943156,87.629,87.571,32.67847002]
[1770543833475,46.3943156,87.619,87.572,21.31847002]
[1770543836676,46.3943156,87.619,87.573,10.287]
[1770543836876,46.3943156,87.619,87.573,31.27205437]
[1770543838877,46.3943156,87.619,87.564,10.2881]